[Event "Mitropa Cup Women 2024"]
[Site "Apolda"]
[Date "2024.02.19"]
[Round "5.4"]
[White "Karacsonyi, Kata"]
[Black "Blanquet, Camille"]
[Result "0-1"]
[ECO "B12"]
[WhiteElo "2087"]
[BlackElo "2023"]
[Annotator "NA RC"]
[PlyCount "80"]
[EventDate "2024.02.15"]
[EventType "team-tourn"]
[EventCountry "GER"]
[SourceTitle "playchess.com"]
[Source "ChessBase"]
[SourceQuality "1"]
[WhiteTeam "Hungary"]
[BlackTeam "France"]
[WhiteTeamCountry "HUN"]
[BlackTeamCountry "FRA"]
[TimeControl "40/5400+30:1800+30"]

1. e4 {[%emt 0:00:03]} c6 {[%emt 0:00:04]} 2. d4 {[%emt 0:00:11]} d5 {[%emt 0:00:06]} 3. e5 {[%emt 0:00:09]} Bf5 {[%emt 0:00:38]} 4. h4 {[%emt 0:00:16]} h5 {[%emt 0:00:37]} 5. Bd3 {[%emt 0:00:51]} Bxd3 {[%emt 0:00:14]} 6. Qxd3 {[%emt 0:00:06]} e6 {[%emt 0:00:40]} 7. Bg5 {[%emt 0:00:21]} Qa5+ {[%emt 0:03:58]} 8. Nd2 {[%emt 0:00:35]} Qa6 {[%emt 0:01:38]} 9. c4 {[%emt 0:19:20]} Nh6 {[%emt 0:03:42]} 10. Ne2 {[%emt 0:02:55]} Nf5 {[%emt 0:01:28]} 11. Ng3 {[%emt 0:09:17]} dxc4 {[%emt 0:08:56]} 12. Qc3 {[%emt 0:11:23]} Nxg3 {[%emt 0:05:51]} 13. fxg3 {[%emt 0:00:29]} c5 {[%emt 0:02:52]} 14. O-O {[%emt 0:08:22]} Qc6 {[%emt 0:05:38]} 15. d5 {[%emt 0:07:47]} Qxd5 {[%emt 0:11:50]} 16. Rf2 {[%emt 0:14:10]} Nc6 {[%emt 0:04:06]} 17. Nxc4 {[%emt 0:02:40]} b5 {[%emt 0:04:19]} 18. Rd2 {[%emt 0:15:34]} Nd4 {[%emt 0:05:00]} 19. Ne3 {[%emt 0:00:26]} Qxe5 {[%emt 0:03:30]} 20. Rad1 {[%emt 0:01:18]} Qe4 {[%emt 0:06:38]} 21. Rxd4 {[%emt 0:04:06]} cxd4 {[%emt 0:00:19]} 22. Rxd4 {[%emt 0:00:31]} Qb7 {[%emt 0:00:26]} 23. Qd3 {[%emt 0:00:34]} f6 {[%emt 0:11:14]} 24. Qb3 {[%emt 0:00:33]} Kf7 {[%emt 0:02:47]} 25. Qd3 {[%emt 0:00:30]} Be7 {[%emt 0:00:35]} 26. Bf4 {[%emt 0:00:30]} Rhd8 {[%emt 0:00:41]} 27. Rxd8 {[%emt 0:00:23]} Rxd8 {[%emt 0:00:06]} 28. Qh7 {[%emt 0:00:25]} Qc6 {[%emt 0:04:05]} 29. Qxh5+ {[%emt 0:00:09]} Kg8 {[%emt 0:00:05]} 30. Qg4 {[%emt 0:00:56]} Qe4 {[%emt 0:00:44]} 31. h5 {[%emt 0:00:37]} Bc5 {[%emt 0:00:46]} 32. Qf3 {[%emt 0:00:32]} Qxf3 {[%emt 0:00:23]} 33. gxf3 {[%emt 0:00:01]} Rd2 {[%emt 0:00:25]} 34. Kf1 {[%emt 0:00:15]} Bxe3 {[%emt 0:00:49]} 35. Bxe3 {[%emt 0:00:01]} Rxb2 {[%emt 0:00:06]} 36. Bxa7 {[%emt 0:00:41]} Rxa2 {[%emt 0:00:05]} 37. Bd4 {[%emt 0:00:22]} b4 {[%emt 0:00:59]} 38. Ke1 {[%emt 0:00:06]} e5 {[%emt 0:00:16]} 39. Be3 {[%emt 0:00:37]} b3 {[%emt 0:00:18]} 40. Kd1 {[%emt 0:00:07]} Ra1+ {[%emt 0:00:21]} 0-1

[Event "Mitropa Cup Women 2024"]
[Site "Apolda"]
[Date "2024.02.19"]
[Round "5.5"]
[White "Urh, Zala"]
[Black "Walter, Ema"]
[Result "1/2-1/2"]
[ECO "E04"]
[WhiteElo "2290"]
[BlackElo "2124"]
[Annotator "RC"]
[PlyCount "129"]
[EventDate "2024.02.15"]
[EventType "team-tourn"]
[EventCountry "GER"]
[SourceTitle "playchess.com"]
[Source "ChessBase"]
[SourceQuality "1"]
[WhiteTeam "Slovenia"]
[BlackTeam "Slovakia"]
[WhiteTeamCountry "SLO"]
[BlackTeamCountry "SVK"]
[TimeControl "40/5400+30:1800+30"]

1. d4 {[%emt 0:00:01]} Nf6 {[%emt 0:00:05]} 2. c4 {[%emt 0:00:06]} e6 {[%emt 0:00:04]} 3. Nf3 {[%emt 0:00:03]} d5 {[%emt 0:00:07]} 4. g3 {[%emt 0:00:04]} dxc4 {[%emt 0:00:05]} 5. Bg2 {[%emt 0:01:03]} c6 {[%emt 0:00:07]} 6. O-O {[%emt 0:04:03]} b5 {[%emt 0:01:46]} 7. a4 {[%emt 0:20:26]} Bb7 {[%emt 0:01:44]} 8. Nc3 {[%emt 0:01:23]} a6 {[%emt 0:02:48]} 9. Ne5 {[%emt 0:01:07]} Bd6 {[%emt 0:01:22]} 10. axb5 {[%emt 0:13:13]} axb5 {[%emt 0:00:17]} 11. Rxa8 {[%emt 0:00:04]} Bxa8 {[%emt 0:00:05]} 12. Nxb5 {[%emt 0:02:20]} cxb5 {[%emt 0:00:06]} 13. Bxa8 {[%emt 0:00:02]} O-O {[%emt 0:00:12]} 14. Bg2 {[%emt 0:04:18]} Qc7 {[%emt 0:00:27]} 15. f4 {[%emt 0:03:42]} Rd8 {[%emt 0:06:20]} 16. e3 {[%emt 0:08:05]} Nd5 {[%emt 0:06:53]} 17. g4 {[%emt 0:04:37]} Nd7 {[%emt 0:10:59]} 18. Qe1 {[%emt 0:10:37]} Rb8 {[%emt 0:26:02]} 19. Bd2 {[%emt 0:05:14]} b4 {[%emt 0:04:30]} 20. e4 {[%emt 0:01:24]} Ne7 {[%emt 0:11:07]} 21. Nxd7 {[%emt 0:04:58]} Qxd7 {[%emt 0:00:07]} 22. Kh1 {[%emt 0:00:02]} Nc6 {[%emt 0:02:44]} 23. d5 {[%emt 0:05:38]} exd5 {[%emt 0:24:03]} 24. exd5 Nd4 {[%emt 0:00:00]} 25. Qh4 {[%emt 0:01:42]} Re8 {[%emt 0:00:00]} 26. Re1 {[%emt 0:04:55]} Nb3 {[%emt 0:00:00]} 27. Rxe8+ {[%emt 0:00:05]} Qxe8 {[%emt 0:00:00]} 28. Qe1 {[%emt 0:00:03]} Qb8 {[%emt 0:00:00]} 29. Be4 {[%emt 0:02:37]} Nxd2 {[%emt 0:00:00]} 30. Qxd2 {[%emt 0:00:01]} Bxf4 {[%emt 0:00:00]} 31. Qc2 {[%emt 0:00:16]} g6 {[%emt 0:00:07]} 32. Qxc4 {[%emt 0:00:35]} Bxh2 {[%emt 0:00:26]} 33. Qc2 {[%emt 0:03:00]} Bd6 {[%emt 0:00:12]} 34. b3 {[%emt 0:00:08]} Qd8 {[%emt 0:00:37]} 35. Qf2 {[%emt 0:01:18]} Qg5 {[%emt 0:01:19]} 36. Qf3 {[%emt 0:00:33]} Qd2 {[%emt 0:01:07]} 37. Kg1 {[%emt 0:00:24]} Qe1+ {[%emt 0:01:29]} 38. Kg2 {[%emt 0:00:04]} Kg7 {[%emt 0:00:26]} 39. Bd3 {[%emt 0:01:00]} Qd2+ {[%emt 0:01:23]} 40. Qe2 {[%emt 0:00:32]} Qf4 {[%emt 0:00:29]} 41. Qf3 {[%emt 0:07:46]} Qg5 {[%emt 0:06:12]} 42. Kf1 {[%emt 0:02:37]} Qc1+ {[%emt 0:00:52]} 43. Kg2 {[%emt 0:00:14]} Qb2+ {[%emt 0:00:48]} 44. Be2 {[%emt 0:00:08]} Be5 {[%emt 0:03:32]} 45. Kf1 {[%emt 0:02:59]} Qb1+ {[%emt 0:07:19]} 46. Kg2 {[%emt 0:00:52]} Qc2 {[%emt 0:01:09]} 47. Kf1 {[%emt 0:01:43]} f5 {[%emt 0:02:26]} 48. gxf5 {[%emt 0:01:51]} Qxf5 {[%emt 0:00:20]} 49. Qxf5 {[%emt 0:00:57]} gxf5 {[%emt 0:00:04]} 50. Kg2 {[%emt 0:04:05]} Kf6 {[%emt 0:00:07]} 51. Kf3 {[%emt 0:06:35]} Kg5 {[%emt 0:00:08]} 52. Bd3 {[%emt 0:00:44]} h5 {[%emt 0:00:39]} 53. Be2 {[%emt 0:02:06]} Bd6 {[%emt 0:01:11]} 54. Bd3 {[%emt 0:00:33]} h4 {[%emt 0:00:07]} 55. Bf1 {[%emt 0:00:13]} Kf6 {[%emt 0:00:13]} 56. Bg2 {[%emt 0:02:28]} Ke5 {[%emt 0:00:27]} 57. Bh3 {[%emt 0:00:37]} f4 {[%emt 0:02:08]} 58. Kg4 {[%emt 0:02:15]} Kd4 {[%emt 0:05:33]} 59. Bf1 {[%emt 0:00:39]} Kxd5 {[%emt 0:03:56]} 60. Kxh4 {[%emt 0:00:16]} Ke4 {[%emt 0:00:32]} 61. Bc4 {[%emt 0:01:02]} Kf3 {[%emt 0:02:05]} 62. Bd5+ {[%emt 0:00:13]} Ke3 {[%emt 0:00:35]} 63. Kg4 {[%emt 0:00:05]} Kd4 {[%emt 0:00:16]} 64. Bc6 {[%emt 0:00:33]} Kc3 {[%emt 0:00:20]} 65. Bd5 {[%emt 0:00:05]} 1/2-1/2

[Event "Mitropa Cup Women 2024"]
[Site "Apolda"]
[Date "2024.02.19"]
[Round "5.6"]
[White "Sankova, Stella"]
[Black "Shpanko, Nadiia"]
[Result "0-1"]
[ECO "C42"]
[WhiteElo "2124"]
[BlackElo "2179"]
[Annotator "RC"]
[PlyCount "50"]
[EventDate "2024.02.15"]
[EventType "team-tourn"]
[EventCountry "GER"]
[SourceTitle "playchess.com"]
[Source "ChessBase"]
[SourceQuality "1"]
[WhiteTeam "Slovakia"]
[BlackTeam "Slovenia"]
[WhiteTeamCountry "SVK"]
[BlackTeamCountry "SLO"]
[TimeControl "40/5400+30:1800+30"]

1. e4 {[%emt 0:00:02]} e5 {[%emt 0:00:05]} 2. Nf3 {[%emt 0:00:05]} Nf6 {[%emt 0:00:07]} 3. Nxe5 {[%emt 0:01:12]} d6 {[%emt 0:00:19]} 4. Nf3 {[%emt 0:00:06]} Nxe4 {[%emt 0:00:05]} 5. Nc3 {[%emt 0:00:19]} Nxc3 {[%emt 0:00:17]} 6. dxc3 {[%emt 0:00:06]} Be7 {[%emt 0:00:31]} 7. Be3 {[%emt 0:01:32]} c6 {[%emt 0:00:36]} 8. Qd2 {[%emt 0:02:15]} O-O {[%emt 0:01:41]} 9. O-O-O {[%emt 0:02:18]} Nd7 {[%emt 0:01:27]} 10. Kb1 {[%emt 0:07:12]} d5 {[%emt 0:02:49]} 11. h4 {[%emt 0:02:46]} Nc5 {[%emt 0:09:16]} 12. Ng5 {[%emt 0:02:50]} h6 {[%emt 0:03:22]} 13. f3 {[%emt 0:03:55]} Re8 {[%emt 0:08:01]} 14. g4 {[%emt 0:04:55]} Ne6 {[%emt 0:12:15]} 15. Nxe6 {[%emt 0:14:38]} Bxe6 {[%emt 0:00:23]} 16. Bd3 {[%emt 0:03:36]} Bf8 {[%emt 0:03:34]} 17. Rdg1 {[%emt 0:10:45]} Qa5 {[%emt 0:21:07]} 18. Bf5 {[%emt 0:11:17]} d4 {[%emt 0:02:36]} 19. Bxe6 {[%emt 0:01:01]} dxe3 {[%emt 0:00:15]} 20. Bxf7+ {[%emt 0:06:57]} Kxf7 {[%emt 0:00:05]} 21. Qd7+ {[%emt 0:00:03]} Re7 {[%emt 0:01:33]} 22. Qd3 {[%emt 0:00:08]} Qd5 {[%emt 0:05:42]} 23. Qh7 {[%emt 0:00:24]} e2 {[%emt 0:00:35]} 24. g5 {[%emt 0:00:35]} Qxf3 {[%emt 0:06:11]} 25. gxh6 {[%emt 0:01:50]} Qxh1 {[%emt 0:00:22]} 0-1

[Event "Mitropa Cup Women 2024"]
[Site "Apolda"]
[Date "2024.02.19"]
[Round "5.7"]
[White "Vidic, Teja"]
[Black "Sevcikova, Lucia"]
[Result "1-0"]
[ECO "C10"]
[WhiteElo "2132"]
[BlackElo "2007"]
[Annotator "NA RC"]
[PlyCount "49"]
[EventDate "2024.02.15"]
[EventType "team-tourn"]
[EventCountry "GER"]
[SourceTitle "playchess.com"]
[Source "ChessBase"]
[SourceQuality "1"]
[WhiteTeam "Slovenia"]
[BlackTeam "Slovakia"]
[WhiteTeamCountry "SLO"]
[BlackTeamCountry "SVK"]
[TimeControl "40/5400+30:1800+30"]

1. e4 {[%emt 0:00:02]} e6 {[%emt 0:00:04]} 2. d4 {[%emt 0:00:05]} d5 {[%emt 0:00:03]} 3. Nc3 {[%emt 0:00:05]} dxe4 {[%emt 0:00:06]} 4. Nxe4 {[%emt 0:00:07]} Nd7 {[%emt 0:00:05]} 5. Nf3 {[%emt 0:00:40]} Ngf6 {[%emt 0:00:07]} 6. Nxf6+ {[%emt 0:00:06]} Nxf6 {[%emt 0:00:04]} 7. Bd3 {[%emt 0:00:07]} c5 {[%emt 0:01:26]} 8. Be3 {[%emt 0:00:05]} Nd5 {[%emt 0:06:37]} 9. Qe2 {[%emt 0:09:22]} Nxe3 {[%emt 0:06:03]} 10. fxe3 {[%emt 0:00:05]} Be7 {[%emt 0:09:15]} 11. O-O-O {[%emt 0:01:42]} O-O {[%emt 0:01:06]} 12. h4 {[%emt 0:00:09]} f5 {[%emt 0:07:43]} 13. g4 {[%emt 0:08:24]} Qa5 {[%emt 0:09:55]} 14. Kb1 {[%emt 0:06:16]} Kh8 {[%emt 0:05:55]} 15. gxf5 {[%emt 0:09:34]} exf5 {[%emt 0:00:47]} 16. Ng5 {[%emt 0:00:05]} Bxg5 {[%emt 0:11:15]} 17. hxg5 {[%emt 0:00:13]} Be6 {[%emt 0:01:28]} 18. b3 {[%emt 0:14:01]} Bg8 {[%emt 0:08:57]} 19. Bc4 {[%emt 0:09:11]} Bxc4 {[%emt 0:04:27]} 20. Rxh7+ {[%emt 0:01:20]} Kxh7 {[%emt 0:00:43]} 21. Rh1+ {[%emt 0:00:12]} Kg8 {[%emt 0:00:13]} 22. Qxc4+ {[%emt 0:00:07]} Rf7 {[%emt 0:00:34]} 23. g6 {[%emt 0:00:35]} Raf8 {[%emt 0:01:32]} 24. Qd5 {[%emt 0:02:27]} Qb6 {[%emt 0:05:13]} 25. Rh8+ {[%emt 0:00:07]} 1-0

[Event "Mitropa Cup Women 2024"]
[Site "Apolda"]
[Date "2024.02.19"]
[Round "5.8"]
[White "Sekova, Olivia"]
[Black "Mihelic, Vesna"]
[Result "1-0"]
[ECO "C45"]
[WhiteElo "2054"]
[BlackElo "2112"]
[Annotator "NA RC"]
[PlyCount "99"]
[EventDate "2024.02.15"]
[EventType "team-tourn"]
[EventCountry "GER"]
[SourceTitle "playchess.com"]
[Source "ChessBase"]
[SourceQuality "1"]
[WhiteTeam "Slovakia"]
[BlackTeam "Slovenia"]
[WhiteTeamCountry "SVK"]
[BlackTeamCountry "SLO"]
[TimeControl "40/5400+30:1800+30"]

1. e4 {[%emt 0:00:04]} e5 {[%emt 0:00:06]} 2. Nf3 {[%emt 0:00:10]} Nc6 {[%emt 0:00:07]} 3. d4 {[%emt 0:00:12]} exd4 {[%emt 0:00:10]} 4. Nxd4 {[%emt 0:00:07]} Nf6 {[%emt 0:00:07]} 5. Nxc6 {[%emt 0:00:11]} bxc6 {[%emt 0:00:08]} 6. Nd2 {[%emt 0:00:14]} d5 {[%emt 0:15:14]} 7. exd5 {[%emt 0:00:08]} cxd5 {[%emt 0:00:49]} 8. Bb5+ {[%emt 0:00:09]} Bd7 {[%emt 0:00:24]} 9. Bxd7+ {[%emt 0:00:07]} Qxd7 {[%emt 0:00:25]} 10. O-O {[%emt 0:00:09]} Be7 {[%emt 0:00:35]} 11. b3 {[%emt 0:00:16]} O-O {[%emt 0:00:43]} 12. Bb2 {[%emt 0:00:05]} Qf5 {[%emt 0:09:20]} 13. Nf3 {[%emt 0:08:36]} Ne4 {[%emt 0:09:40]} 14. Qd3 {[%emt 0:05:28]} Rad8 {[%emt 0:07:27]} 15. Rad1 {[%emt 0:04:07]} Bf6 {[%emt 0:02:29]} 16. Nd4 {[%emt 0:03:32]} Qd7 {[%emt 0:02:04]} 17. Ba3 {[%emt 0:03:04]} Rfe8 {[%emt 0:02:14]} 18. f3 {[%emt 0:01:56]} Nd6 {[%emt 0:05:41]} 19. c3 {[%emt 0:05:40]} Re5 {[%emt 0:06:53]} 20. Qa6 {[%emt 0:02:28]} Nc8 {[%emt 0:12:25]} 21. Bc5 {[%emt 0:04:09]} Rg5 {[%emt 0:02:32]} 22. Kh1 {[%emt 0:02:38]} Rg6 {[%emt 0:01:28]} 23. Qb5 {[%emt 0:04:28]} Be7 {[%emt 0:03:03]} 24. Bxe7 {[%emt 0:03:03]} Nxe7 {[%emt 0:01:00]} 25. Rfe1 {[%emt 0:00:20]} Kf8 {[%emt 0:01:20]} 26. Qc5 {[%emt 0:01:55]} c6 {[%emt 0:05:36]} 27. Re2 {[%emt 0:02:14]} Rd6 {[%emt 0:02:05]} 28. Rde1 {[%emt 0:00:18]} Nc8 {[%emt 0:00:41]} 29. Re5 {[%emt 0:02:19]} g6 {[%emt 0:00:56]} 30. b4 {[%emt 0:03:33]} a6 {[%emt 0:00:29]} 31. a4 {[%emt 0:00:37]} Qa7 {[%emt 0:04:34]} 32. Nb3 {[%emt 0:00:30]} Qb6 {[%emt 0:02:48]} 33. a5 {[%emt 0:03:00]} Qb5 {[%emt 0:00:54]} 34. Qd4 {[%emt 0:00:38]} Rf6 {[%emt 0:01:47]} 35. Rxd5 {[%emt 0:00:35]} Qxd5 {[%emt 0:00:48]} 36. Qxf6 {[%emt 0:00:07]} Kg8 {[%emt 0:00:06]} 37. Nd4 {[%emt 0:00:29]} Na7 {[%emt 0:00:36]} 38. Re5 {[%emt 0:00:15]} Qd6 {[%emt 0:00:25]} 39. Qxd6 {[%emt 0:05:49]} Rxd6 {[%emt 0:00:01]} 40. Rc5 {[%emt 0:01:21]} Rd5 {[%emt 0:01:44]} 41. Rxd5 {[%emt 0:30:16]} cxd5 {[%emt 0:30:02]} 42. Kg1 {[%emt 0:00:59]} Kf8 {[%emt 0:00:00]} 43. Kf2 {[%emt 0:00:00]} Ke7 {[%emt 0:00:00]} 44. Ke3 {[%emt 0:00:00]} Kd6 {[%emt 0:00:00]} 45. Kf4 {[%emt 0:00:00]} f6 {[%emt 0:00:00]} 46. g4 {[%emt 0:00:00]} h6 {[%emt 0:00:00]} 47. h4 {[%emt 0:00:00]} Nc8 {[%emt 0:00:00]} 48. h5 {[%emt 0:00:00]} f5 {[%emt 0:00:00]} 49. hxg6 {[%emt 0:00:00]} fxg4 {[%emt 0:00:00]} 50. g7 {[%emt 0:00:00]} 1-0

[Event "Mitropa Cup Women 2024"]
[Site "Apolda"]
[Date "2024.02.19"]
[Round "5.9"]
[White "Novosadova, Kristyna"]
[Black "Hakimifard, Ghazal"]
[Result "1/2-1/2"]
[ECO "B95"]
[WhiteElo "2188"]
[BlackElo "2243"]
[Annotator "TA"]
[PlyCount "65"]
[EventDate "2024.02.15"]
[EventType "team-tourn"]
[EventCountry "GER"]
[SourceTitle "playchess.com"]
[Source "ChessBase"]
[SourceQuality "1"]
[WhiteTeam "Czech Republic"]
[BlackTeam "Switzerland"]
[WhiteTeamCountry "CZE"]
[BlackTeamCountry "SUI"]
[TimeControl "40/5400+30:1800+30"]

{[%evp 16,65,11,-10,35,0,0,-47,-15,-54,-60,-233,-242,-230,0,0,0,-16,-26,-17,-18,0,14,4,6,0,30,21,22,24,18,20,62,62,62,63,75,38,46,8,8,0,0,0,0,-8,-8,-31,-31,-67,-3,0]} 1. e4 {[%emt 0:00:02]} c5 {[%emt 0:00:05]} 2. Nf3 {[%emt 0:00:05]} e6 {[%emt 0:00:10]} 3. d4 {[%emt 0:00:05]} cxd4 {[%emt 0:00:04]} 4. Nxd4 {[%emt 0:00:04]} a6 {[%emt 0:00:05]} 5. Nc3 {[%emt 0:00:05]} Qc7 {[%emt 0:00:08]} 6. Qf3 {[%emt 0:00:09]} Nf6 {[%emt 0:00:28]} 7. Bg5 {[%emt 0:01:17]} Be7 {[%emt 0:00:10]} 8. O-O-O {[%emt 0:01:10]} d6 {[%emt 0:03:15]} 9. g4 {[%emt 0:04:55]} Nbd7 {[%emt 0:07:45]} (9... b5 $5) 10. Qe2 {[%emt 0:03:16]} b5 {[%emt 0:11:35]} 11. Bg2 {[%emt 0:11:39]} (11. a3 $1 $11) 11... Bb7 {[%emt 0:02:12] Threatening ...b4. Black is slightly better.} 12. f4 {[%emt 0:06:32]} b4 {[%emt 0:09:08]} 13. Nd5 {[%emt 0:22:25] [#]} exd5 $19 {[%emt 0:04:06]} 14. Nf5 {[%emt 0:01:15]} Qc4 {[%emt 0:05:57]} ({Black should play} 14... dxe4 $19 {...d5 is the strong threat.} 15. Nxe7 (15. Nxg7+ $2 Kd8 $19) 15... Kxe7 16. Bxf6+ Nxf6) 15. Qxc4 $11 {[%emt 0:03:50]} (15. Qd2 $2 h6 (15... Nxe4 $2 16. Bxe4 Nc5 17. Nxg7+ Kd8 18. Bxe7+ Kxe7 19. Nf5+ Kd7 20. Bxd5 $18) (15... Qxa2 16. Qxb4 Rb8 17. Nxe7 $17) (15... dxe4 16. Bxf6 Nxf6 17. Nxe7 $17) 16. Bxf6 (16. Nxg7+ $2 Kf8 $19) 16... Nxf6 $19) 15... dxc4 {[%emt 0:00:12]} 16. Nxg7+ {[%emt 0:00:09]} Kf8 {[%emt 0:11:37]} 17. Nf5 {[%emt 0:00:52]} h6 {[%emt 0:07:17]} (17... Bxe4 $2 18. Bxe4 Nxe4 19. Bxe7+ Kg8 20. Rhe1 $18 (20. Bxd6 Ndc5 $18)) 18. Bh4 {[%emt 0:18:03]} Re8 {[%emt 0:04:18][%cal Ba8e8,Be8e4,Be4f4,Bf4f2][%mdl 32]} (18... Bxe4 $2 19. Bxe4 Rd8 20. Bc6 $18 (20. Nxd6 Nxe4 21. Bxe7+ Kxe7 $16)) (18... c3 {feels hotter.} 19. bxc3 bxc3 20. Nxe7 Kxe7 21. Rhg1 Rhb8) 19. Nxd6 {[%emt 0:02:50]} (19. Rhg1 {looks sharper.} Nxg4 20. Bxe7+ Rxe7 21. Rxd6 Nf2 22. Rd2) 19... Bxd6 {[%emt 0:07:02]} 20. Rxd6 {[%emt 0:00:02]} Bxe4 {[%emt 0:04:59]} (20... Nxe4 $2 {too greedy.} 21. Rxd7 Bc8 22. Rd4 $18) 21. Bxe4 {[%emt 0:01:37]} (21. Bxf6 $2 {is the wrong capture.} Nxf6 (21... Bxg2 22. Bxh8 Bxh1 23. Rxd7 $14) 22. Bxe4 Nxe4 $19) 21... Rxe4 {[%emt 0:00:03]} 22. Bxf6 {[%emt 0:00:18]} Nxf6 {[%emt 0:00:01]} 23. Rxf6 {[%emt 0:00:14][%mdl 4096] Endgame. KRR-KRR} Kg7 {[%emt 0:00:04]} 24. Rxa6 {[%emt 0:07:17]} Rxf4 {[%emt 0:00:12]} 25. Ra4 {[%emt 0:05:02]} Rb8 {[%emt 0:02:12]} 26. Rg1 {[%emt 0:00:32]} Rf2 {[%emt 0:02:51]} 27. h4 {[%emt 0:01:35]} c3 {[%emt 0:06:02]} 28. Kb1 {[%emt 0:01:58]} cxb2 $1 {[%emt 0:03:16]} 29. Kxb2 {[%emt 0:03:31]} Rc8 {[%emt 0:00:11]} 30. Rxb4 {[%emt 0:03:19]} Rcxc2+ {[%emt 0:00:13]} 31. Kb1 {[%emt 0:00:18]} Rxa2 {[%emt 0:00:10]} 32. g5 {[%emt 0:00:47]} Rg2 {[%emt 0:02:39]} (32... h5 $1 $15) 33. gxh6+ {[%emt 0:00:43] Weighted Error Value: White=0.25 (precise) /Black=0.32.  Loses game:     	White=1     	---        Missed win:     	---       	Black=1      Mistake:       	White=1     	Black=1      Inaccurate:     	White=5     	Black=3      OK:         	White=6     	Black=10     Best:        	---       	Black=1      Strong:       	---       	Black=1} 1/2-1/2

[Event "Mitropa Cup Women 2024"]
[Site "Apolda"]
[Date "2024.02.19"]
[Round "5.10"]
[White "Georgescu, Lena"]
[Black "Koubova, Anna Marie"]
[Result "1/2-1/2"]
[ECO "C12"]
[WhiteElo "2268"]
[BlackElo "2100"]
[Annotator "TA"]
[PlyCount "83"]
[EventDate "2024.02.15"]
[EventType "team-tourn"]
[EventCountry "GER"]
[SourceTitle "playchess.com"]
[Source "ChessBase"]
[SourceQuality "1"]
[WhiteTeam "Switzerland"]
[BlackTeam "Czech Republic"]
[WhiteTeamCountry "SUI"]
[BlackTeamCountry "CZE"]
[TimeControl "40/5400+30:1800+30"]

{[%evp 14,83,10,10,6,-4,0,-36,7,10,13,0,27,21,36,41,45,32,32,19,12,11,22,41,40,0,50,26,28,21,126,66,108,92,189,170,361,301,450,305,391,385,535,514,491,329,273,233,296,313,284,114,106,20,25,21,12,-4,-8,-30,0,0,0,0,0,0,0,0,0,0,0,0]} 1. e4 {[%emt 0:00:05]} e6 {[%emt 0:00:09]} 2. d4 {[%emt 0:00:04]} d5 {[%emt 0:00:04]} 3. Nc3 {[%emt 0:00:03]} Nf6 {[%emt 0:00:12]} 4. Bg5 {[%emt 0:00:05]} Bb4 {[%emt 0:00:13]} 5. e5 {[%emt 0:00:13]} h6 {[%emt 0:00:13]} 6. Bd2 {[%emt 0:00:32]} Bxc3 {[%emt 0:00:22]} 7. bxc3 {[%emt 0:00:05]} Ne4 {[%emt 0:00:10]} 8. Bc1 {[%emt 0:00:07] Threatening Qg4.} Nxc3 {[%emt 0:01:01]} 9. Qg4 {[%emt 0:00:18]} g6 {[%emt 0:00:36][%cal Oc7c5]} 10. Ne2 {[%emt 0:01:37]} Nxe2 {[%emt 0:01:51] Black is slightly better.} 11. Bxe2 {[%emt 0:00:08]} b6 {[%emt 0:04:38]} 12. h4 $1 {[%emt 0:00:58]} h5 {[%emt 0:02:24]} 13. Qf3 {[%emt 0:05:20]} Ba6 {[%emt 0:02:57]} 14. Bxa6 {[%emt 0:04:10]} Nxa6 {[%emt 0:00:30][%cal Bb8a6,Ba6b4,Bb4c6,Bc6e7,Be7g8][%mdl 32]} 15. Bg5 {[%emt 0:01:38] Black is weak on the dark squares} Qd7 {[%emt 0:01:47]} 16. O-O {[%emt 0:07:07][%mdl 1024] White has compensation.} Nb4 {[%emt 0:03:25]} 17. Rfd1 {[%emt 0:19:12]} Nc6 {[%emt 0:08:40] [#]} 18. c4 $1 {[%emt 0:11:04][%cal Bc2c4,Bc4c5][%mdl 32]} Ne7 {[%emt 0:11:24]} (18... dxc4 $2 {too greedy.} 19. d5 exd5 (19... Nxe5 $2 {loses.} 20. Qf6 $18) 20. Rxd5 $18) 19. Rac1 $40 {[%emt 0:02:58][%mdl 128] White is up to no good.} Rc8 {[%emt 0:31:08]} (19... c6 $11) 20. c5 {[%emt 0:06:55][%cal Oc5c6]} c6 {[%emt 0:02:28]} 21. Bf6 {[%emt 0:01:20]} Rh7 {[%emt 0:01:41]} (21... Rg8 $11) 22. a4 {[%emt 0:07:01] White has more active pieces.} (22. Qc3 $16) 22... Ng8 {[%emt 0:05:38]} 23. Bg5 {[%emt 0:00:37]} Qb7 {[%emt 0:01:47]} (23... Ne7 $16) 24. cxb6 $18 {[%emt 0:02:35]} Qxb6 {[%emt 0:03:59]} (24... axb6 25. Rb1 Qa7) 25. Rb1 {[%emt 0:05:44]} Qa6 {[%emt 0:00:19]} (25... Qc7 $142 26. Rb2 c5) 26. Qa3 {[%emt 0:01:00] Threatens to win with Qd6.} f6 {[%emt 0:02:27]} 27. exf6 {[%emt 0:01:04]} ({Weaker is} 27. Bxf6 Rd7 28. Bg5 Kf7 $18) 27... Rd7 {[%emt 0:00:30] Prevents Qd6.} 28. Re1 {[%emt 0:03:25][%cal Oa3h3] Qh3! would kill now.} c5 {[%emt 0:01:53]} 29. dxc5 {[%emt 0:00:47]} Kf7 {[%emt 0:00:32]} 30. Rb2 {[%emt 0:12:43]} d4 {[%emt 0:02:06]} 31. Rbe2 {[%emt 0:00:20] aiming for Rxe6.} Rc6 {[%emt 0:01:48]} 32. Rd2 {[%emt 0:02:17]} (32. Qf3 $18 {is more deadly.}) 32... Qc4 {[%emt 0:00:50] [#]} 33. Rc1 {[%emt 0:00:37]} (33. Re5 $1 $16) 33... Qd5 $11 {[%emt 0:00:20]} 34. Rd3 {[%emt 0:00:40]} e5 $1 {[%emt 0:01:44]} 35. f3 {[%emt 0:01:11][%cal Bf2f3,Bf3f4,Bf4e5][%mdl 32]} (35. Rf3 {feels hotter.} Rb7 36. Qa1 Nxf6 37. Rb1) 35... Nxf6 {[%emt 0:00:27]} 36. Qb4 {[%emt 0:00:48] Prevents Rb7} Rdc7 {[%emt 0:04:59]} 37. f4 {[%emt 0:01:06] Hoping for fxe5. The position is equal.} Rxc5 {[%emt 0:02:08]} 38. Rxc5 {[%emt 0:00:17]} Qxc5 {[%emt 0:00:10]} 39. Qxc5 {[%emt 0:01:24]} Rxc5 {[%emt 0:00:05]} 40. fxe5 {[%emt 0:00:14]} Ne4 {[%emt 0:01:52]} 41. Rxd4 {[%emt 0:02:46]} Nxg5 {[%emt 0:03:53]} 42. hxg5 {[%emt 0:00:08] Black defended with fortune.   Weighted Error Value: White=0.34/Black=0.37.  Missed win:     	White=1     	---        Mistake:       	White=2     	Black=5      Inaccurate:     	White=4     	Black=5      OK:         	White=14    	Black=7      Best:        	White=2     	Black=3      Strong:       	White=1     	Black=1} 1/2-1/2